[Event "Ruzomberok GM 2019"]
[Site "Ruzomberok"]
[Date "2019.07.06"]
[Round "8.3"]
[White "Nayhebaver, Martin"]
[Black "Pacher, Milan"]
[Result "1/2-1/2"]
[ECO "B48"]
[WhiteElo "2473"]
[BlackElo "2416"]
[Annotator "ChessBase"]
[PlyCount "105"]
[EventDate "2019.06.29"]
[EventType "tourn"]
[EventCountry "SVK"]
[SourceTitle "playchess.com"]
[Source "ChessBase"]
[SourceQuality "1"]
[TimeControl "40/5400+30:1800+30"]

1. e4 {[%emt 0:00:00]} c5 {[%emt 0:00:33]} 2. Nc3 {[%emt 0:00:41]} e6 {[%emt 0:00:39]} 3. Nf3 {[%emt 0:01:28]} Nc6 {[%emt 0:00:14]} 4. d4 {[%emt 0:00:32]} cxd4 {[%emt 0:00:04]} 5. Nxd4 {[%emt 0:00:05]} Qc7 {[%emt 0:01:34]} 6. Be3 {[%emt 0:00:37]} a6 {[%emt 0:00:05]} 7. a3 {[%emt 0:00:45]} Nf6 {[%emt 0:02:54]} 8. f4 {[%emt 0:00:18]} d5 {[%emt 0:03:41]} 9. e5 {[%emt 0:00:34]} Nd7 {[%emt 0:00:05]} 10. Qg4 {[%emt 0:00:27]} Nb6 {[%emt 0:13:36]} 11. Bd3 {[%emt 0:03:56]} g6 {[%emt 0:05:50]} 12. Qf3 {[%emt 0:13:57]} Nxd4 {[%emt 0:05:46]} 13. Bxd4 {[%emt 0:00:45]} Bd7 {[%emt 0:00:05]} 14. O-O {[%emt 0:01:47]} Bc5 {[%emt 0:01:38]} 15. Ne2 {[%emt 0:01:04]} Nc4 {[%emt 0:10:10]} 16. Qf2 {[%emt 0:03:41]} Bxd4 {[%emt 0:04:55]} 17. Qxd4 {[%emt 0:00:28]} Qb6 {[%emt 0:00:17]} 18. b3 {[%emt 0:04:46]} Qxd4+ {[%emt 0:00:24]} 19. Nxd4 {[%emt 0:00:02]} Na5 {[%emt 0:00:33]} 20. Kf2 {[%emt 0:07:10]} h5 {[%emt 0:02:08]} 21. Ke3 {[%emt 0:03:28]} Ke7 {[%emt 0:00:41]} 22. g3 {[%emt 0:02:11]} Nc6 {[%emt 0:01:10]} 23. Nf3 {[%emt 0:02:53]} Na7 {[%emt 0:06:04]} 24. c4 {[%emt 0:03:20]} dxc4 {[%emt 0:01:41]} 25. Bxc4 {[%emt 0:01:07]} Bb5 {[%emt 0:01:37]} 26. Rac1 {[%emt 0:03:20]} Rac8 {[%emt 0:01:08]} 27. Nd2 {[%emt 0:00:54]} Rhd8 {[%emt 0:01:52]} 28. Ne4 {[%emt 0:04:26]} Bxc4 {[%emt 0:02:22]} 29. bxc4 {[%emt 0:00:09]} Rc7 {[%emt 0:00:34]} 30. c5 {[%emt 0:07:03]} Rd5 {[%emt 0:06:54]} 31. Rfd1 {[%emt 0:06:16]} Nc6 {[%emt 0:06:29]} 32. Rxd5 {[%emt 0:09:16]} exd5 {[%emt 0:00:04]} 33. Nf6 {[%emt 0:00:08]} Ke6 {[%emt 0:01:05]} 34. Rb1 {[%emt 0:00:09]} Na5 {[%emt 0:02:59]} 35. Kd4 {[%emt 0:02:52]} Nc6+ {[%emt 0:00:04]} 36. Kd3 {[%emt 0:00:06]} Na5 {[%emt 0:00:21]} 37. Kd4 {[%emt 0:12:02]} Nc6+ {[%emt 0:00:05]} 38. Kc3 {[%emt 0:00:34]} Nd8 {[%emt 0:11:13]} 39. Rb6+ {[%emt 0:00:55]} Kf5 {[%emt 0:00:04]} 40. Nxd5 {[%emt 0:00:12]} Rxc5+ {[%emt 0:02:52]} 41. Kd4 {[%emt 0:32:34]} Ne6+ {[%emt 0:30:21]} 42. Rxe6 {[%emt 0:00:31]} Rxd5+ {[%emt 0:00:03]} 43. Kxd5 {[%emt 0:00:06]} fxe6+ {[%emt 0:00:04]} 44. Kc5 {[%emt 0:02:54]} h4 {[%emt 0:05:55]} 45. Kd6 {[%emt 0:00:00]} b5 {[%emt 0:00:00]} 46. g4+ {[%emt 0:00:00]} Kxg4 {[%emt 0:00:00]} 47. Kxe6 {[%emt 0:00:00]} a5 {[%emt 0:00:00]} 48. Kd5 {[%emt 0:00:00]} b4 {[%emt 0:00:00]} 49. axb4 {[%emt 0:00:00]} axb4 {[%emt 0:00:00]} 50. Kc4 {[%emt 0:00:00]} Kf5 {[%emt 0:00:00]} 51. Kxb4 {[%emt 0:00:00]} g5 {[%emt 0:00:00]} 52. fxg5 {[%emt 0:00:00]} Kxe5 {[%emt 0:00:00]} 53. Kc4 {[%emt 0:00:00]} 1/2-1/2

[Event "Ruzomberok GM 2019"]
[Site "Ruzomberok"]
[Date "2019.07.06"]
[Round "8.4"]
[White "Pechac, Jergus"]
[Black "Petenyi, Tamas"]
[Result "0-1"]
[ECO "A45"]
[WhiteElo "2473"]
[BlackElo "2412"]
[Annotator "ChessBase"]
[PlyCount "82"]
[EventDate "2019.06.29"]
[EventType "tourn"]
[EventCountry "SVK"]
[SourceTitle "playchess.com"]
[Source "ChessBase"]
[SourceQuality "1"]
[TimeControl "40/5400+30:1800+30"]

1. d4 {[%emt 0:00:00]} Nf6 {[%emt 0:00:48]} 2. Bg5 {[%emt 0:00:00]} Ne4 {[%emt 0:00:48]} 3. Bf4 {[%emt 0:00:05]} d6 {[%emt 0:00:10]} 4. Nd2 {[%emt 0:00:58]} Nf6 {[%emt 0:00:06]} 5. Ngf3 {[%emt 0:00:36]} g6 {[%emt 0:00:16]} 6. e3 {[%emt 0:00:22]} Bg7 {[%emt 0:00:07]} 7. h3 {[%emt 0:00:33]} O-O {[%emt 0:00:25]} 8. Be2 {[%emt 0:00:07]} Nbd7 {[%emt 0:01:00]} 9. O-O {[%emt 0:00:10]} b6 {[%emt 0:01:13]} 10. a4 {[%emt 0:05:28]} a5 {[%emt 0:00:44]} 11. c3 {[%emt 0:00:51]} Bb7 {[%emt 0:10:43]} 12. Nc4 {[%emt 0:00:39]} Ne4 {[%emt 0:03:46]} 13. Bh2 {[%emt 0:01:10]} e6 {[%emt 0:03:31]} 14. Na3 {[%emt 0:01:13]} Qe7 {[%emt 0:02:26]} 15. Nb5 {[%emt 0:01:08]} Rac8 {[%emt 0:02:13]} 16. Rc1 {[%emt 0:03:37]} f5 {[%emt 0:06:42]} 17. Re1 {[%emt 0:08:44]} g5 {[%emt 0:01:52]} 18. Nd2 {[%emt 0:01:17]} Nxd2 {[%emt 0:08:28]} 19. Qxd2 {[%emt 0:00:05]} Nf6 {[%emt 0:00:10]} 20. Qd1 {[%emt 0:01:26]} g4 {[%emt 0:11:14]} 21. hxg4 {[%emt 0:00:47]} fxg4 {[%emt 0:00:41]} 22. Bxg4 {[%emt 0:00:29]} Nxg4 {[%emt 0:01:16]} 23. Qxg4 {[%emt 0:00:06]} Rf6 {[%emt 0:00:28]} 24. e4 {[%emt 0:07:24]} Rcf8 {[%emt 0:01:52]} 25. Bg3 {[%emt 0:03:20]} Rg6 {[%emt 0:01:35]} 26. Qh4 {[%emt 0:02:15]} Qf7 {[%emt 0:01:55]} 27. Re3 {[%emt 0:01:58]} Bf6 {[%emt 0:03:51]} 28. Qh5 {[%emt 0:03:12]} Bg5 {[%emt 0:02:38]} 29. Rf3 {[%emt 0:00:20]} Bxc1 {[%emt 0:00:40]} 30. Rxf7 {[%emt 0:01:08]} Rxf7 {[%emt 0:00:01]} 31. b4 {[%emt 0:01:45]} Bxe4 {[%emt 0:12:45]} 32. Qh4 {[%emt 0:00:21]} Bd5 {[%emt 0:01:12]} 33. Qd8+ {[%emt 0:02:29]} Rf8 {[%emt 0:00:13]} 34. Qxc7 {[%emt 0:01:32]} Be3 {[%emt 0:01:36]} 35. c4 {[%emt 0:01:55]} Rxg3 {[%emt 0:02:31]} 36. cxd5 {[%emt 0:00:14]} Rxf2 {[%emt 0:00:06]} 37. Qxd6 {[%emt 0:00:29]} Rgxg2+ {[%emt 0:05:46]} 38. Kh1 {[%emt 0:00:08]} Rg6 {[%emt 0:00:12]} 39. Qxb6 {[%emt 0:02:41]} Rf1+ {[%emt 0:00:14]} 40. Kh2 {[%emt 0:00:04]} Bf4+ {[%emt 0:00:05]} 41. Kh3 {[%emt 0:30:08]} Rh1# {[%emt 0:30:05]} 0-1

[Event "Ruzomberok GM 2019"]
[Site "Ruzomberok"]
[Date "2019.07.06"]
[Round "8.5"]
[White "Manik, Mikulas"]
[Black "Hrabusa, Matej"]
[Result "1-0"]
[ECO "B78"]
[WhiteElo "2377"]
[BlackElo "2397"]
[Annotator "NA"]
[PlyCount "59"]
[EventDate "2019.06.29"]
[EventType "tourn"]
[EventCountry "SVK"]
[SourceTitle "playchess.com"]
[Source "ChessBase"]
[SourceQuality "1"]
[TimeControl "40/5400+30:1800+30"]

1. e4 {[%emt 0:00:35]} c5 {[%emt 0:00:00]} 2. Nf3 {[%emt 0:00:03]} d6 {[%emt 0:00:00]} 3. d4 {[%emt 0:00:07]} cxd4 {[%emt 0:00:00]} 4. Nxd4 {[%emt 0:00:02]} Nf6 {[%emt 0:00:00]} 5. Nc3 {[%emt 0:00:01]} g6 {[%emt 0:00:12]} 6. Be3 {[%emt 0:00:04]} Bg7 {[%emt 0:00:12]} 7. f3 {[%emt 0:00:03]} O-O {[%emt 0:00:14]} 8. Qd2 {[%emt 0:00:03]} Nc6 {[%emt 0:00:09]} 9. Bc4 {[%emt 0:00:02]} Bd7 {[%emt 0:03:10]} 10. O-O-O {[%emt 0:00:33]} Rc8 {[%emt 0:01:35]} 11. Be2 {[%emt 0:00:03]} Ne5 {[%emt 0:07:28]} 12. Kb1 {[%emt 0:00:40]} Nc4 {[%emt 0:01:35]} 13. Bxc4 {[%emt 0:00:04]} Rxc4 {[%emt 0:00:05]} 14. g4 {[%emt 0:05:43]} b5 {[%emt 0:02:07]} 15. b3 {[%emt 0:11:41]} b4 {[%emt 0:00:38]} 16. Nd5 {[%emt 0:08:30]} Nxd5 {[%emt 0:05:44]} 17. exd5 {[%emt 0:00:08]} Rc3 {[%emt 0:06:59]} 18. Bh6 {[%emt 0:09:50]} Bxh6 {[%emt 0:28:15]} 19. Qxh6 {[%emt 0:00:04]} e5 {[%emt 0:01:09]} 20. dxe6 {[%emt 0:04:47]} fxe6 {[%emt 0:01:21]} 21. Ne2 {[%emt 0:03:05]} Rc6 {[%emt 0:04:55]} 22. Qd2 {[%emt 0:06:31]} a5 {[%emt 0:05:31]} 23. f4 {[%emt 0:04:42]} Qf6 {[%emt 0:09:28]} 24. f5 {[%emt 0:18:47]} exf5 {[%emt 0:04:44]} 25. gxf5 {[%emt 0:00:07]} gxf5 {[%emt 0:03:26]} 26. Rhg1+ {[%emt 0:03:18]} Kh8 {[%emt 0:00:12]} 27. Nf4 {[%emt 0:00:07]} Be8 {[%emt 0:05:31]} 28. Nd5 {[%emt 0:09:15]} Qh4 {[%emt 0:00:26]} 29. Qg2 {[%emt 0:06:32]} Qh6 {[%emt 0:04:29]} 30. Ne7 {[%emt 0:00:16]} 1-0

[Event "Ruzomberok GM 2019"]
[Site "Ruzomberok"]
[Date "2019.07.07"]
[Round "9.1"]
[White "Hrabusa, Matej"]
[Black "Jurcik, Marian"]
[Result "1/2-1/2"]
[ECO "D00"]
[WhiteElo "2397"]
[BlackElo "2501"]
[Annotator "ChessBase"]
[PlyCount "40"]
[EventDate "2019.06.29"]
[EventType "tourn"]
[EventCountry "SVK"]
[SourceTitle "playchess.com"]
[Source "ChessBase"]
[SourceQuality "1"]
[TimeControl "40/5400+30:1800+30"]

1. d4 {[%emt 0:00:00]} d5 {[%emt 0:01:44]} 2. Bf4 {[%emt 0:00:00]} c5 {[%emt 0:00:54]} 3. e3 {[%emt 0:00:00]} Nc6 {[%emt 0:00:36]} 4. c3 {[%emt 0:00:00]} Nf6 {[%emt 0:00:33]} 5. Nd2 {[%emt 0:00:00]} e6 {[%emt 0:00:50]} 6. Ngf3 {[%emt 0:00:18]} cxd4 {[%emt 0:00:49]} 7. exd4 {[%emt 0:00:05]} Nh5 {[%emt 0:00:14]} 8. Be3 {[%emt 0:01:38]} Bd6 {[%emt 0:00:42]} 9. Ne5 {[%emt 0:03:47]} Nf6 {[%emt 0:02:33]} 10. Bf4 {[%emt 0:06:20]} Qc7 {[%emt 0:03:38]} 11. Bb5 {[%emt 0:04:26]} O-O {[%emt 0:11:32]} 12. Qe2 {[%emt 0:03:46]} Bd7 {[%emt 0:06:58]} 13. Bd3 {[%emt 0:05:45]} Ne8 {[%emt 0:27:33]} 14. O-O {[%emt 0:11:36]} g6 {[%emt 0:00:51]} 15. Ndf3 {[%emt 0:04:00]} Ng7 {[%emt 0:01:17]} 16. Bh6 {[%emt 0:06:49]} Rfe8 {[%emt 0:02:53]} 17. Ng4 {[%emt 0:06:21]} Nh5 {[%emt 0:01:00]} 18. Nge5 {[%emt 0:08:12]} Ng7 {[%emt 0:05:05]} 19. Ng4 {[%emt 0:00:05]} Nh5 {[%emt 0:00:14]} 20. Nge5 {[%emt 0:00:50]} Ng7 1/2-1/2

[Event "Ruzomberok GM 2019"]
[Site "Ruzomberok"]
[Date "2019.07.07"]
[Round "9.2"]
[White "Petenyi, Tamas"]
[Black "Manik, Mikulas"]
[Result "1-0"]
[ECO "A04"]
[WhiteElo "2412"]
[BlackElo "2377"]
[Annotator "NA"]
[PlyCount "64"]
[EventDate "2019.06.29"]
[EventType "tourn"]
[EventCountry "SVK"]
[SourceTitle "playchess.com"]
[Source "ChessBase"]
[SourceQuality "1"]
[TimeControl "40/5400+30:1800+30"]

1. Nf3 {[%emt 0:01:59]} d6 {[%emt 0:00:00]} 2. g3 {[%emt 0:00:18]} g6 {[%emt 0:00:00]} 3. Bg2 {[%emt 0:00:05]} Bg7 {[%emt 0:00:00]} 4. O-O {[%emt 0:00:16]} f5 {[%emt 0:00:03]} 5. c4 {[%emt 0:02:10]} Nf6 {[%emt 0:00:15]} 6. Nc3 {[%emt 0:02:10]} O-O {[%emt 0:00:02]} 7. d3 {[%emt 0:00:45]} e5 {[%emt 0:00:03]} 8. Qb3 {[%emt 0:06:47]} Nc6 {[%emt 0:08:08]} 9. c5+ {[%emt 0:08:09]} Kh8 {[%emt 0:04:09]} 10. Qa3 {[%emt 0:04:14]} d5 {[%emt 0:06:31]} 11. Bg5 {[%emt 0:02:26]} e4 {[%emt 0:17:43]} 12. dxe4 {[%emt 0:02:21]} dxe4 {[%emt 0:06:05]} 13. Rad1 {[%emt 0:03:15]} Qe8 {[%emt 0:00:57]} 14. Nd4 {[%emt 0:02:53]} Nxd4 {[%emt 0:07:19]} 15. Rxd4 {[%emt 0:01:00]} c6 {[%emt 0:00:03]} 16. Rfd1 {[%emt 0:06:15]} Be6 {[%emt 0:08:48]} 17. Rd6 {[%emt 0:04:23]} Qf7 {[%emt 0:10:48]} 18. Be3 {[%emt 0:06:55]} h6 {[%emt 0:04:51]} 19. Bd4 {[%emt 0:01:16]} Kh7 {[%emt 0:01:33]} 20. b3 {[%emt 0:06:22]} a6 {[%emt 0:05:19]} 21. Qa5 {[%emt 0:04:41]} Rae8 {[%emt 0:02:26]} 22. e3 {[%emt 0:01:26]} g5 {[%emt 0:02:08]} 23. Ne2 {[%emt 0:03:31]} Qh5 {[%emt 0:01:23]} 24. Qd2 {[%emt 0:04:19]} Rf7 {[%emt 0:09:12]} 25. h3 {[%emt 0:06:38]} Nd5 {[%emt 0:01:36]} 26. g4 {[%emt 0:03:06]} fxg4 {[%emt 0:01:01]} 27. Ng3 {[%emt 0:00:09]} Qh4 {[%emt 0:00:14]} 28. Bxe4+ {[%emt 0:01:07]} Kg8 {[%emt 0:00:45]} 29. Bg6 {[%emt 0:01:08]} Rf3 {[%emt 0:01:02]} 30. Bxe8 {[%emt 0:03:40]} Bxd4 {[%emt 0:00:10]} 31. Qxd4 {[%emt 0:01:38]} Nxe3 {[%emt 0:00:13]} 32. Qe5 Nd5 1-0

[Event "Ruzomberok GM 2019"]
[Site "Ruzomberok"]
[Date "2019.07.07"]
[Round "9.3"]
[White "Pacher, Milan"]
[Black "Pechac, Jergus"]
[Result "0-1"]
[ECO "B32"]
[WhiteElo "2416"]
[BlackElo "2473"]
[Annotator "ChessBase"]
[PlyCount "76"]
[EventDate "2019.06.29"]
[EventType "tourn"]
[EventCountry "SVK"]
[SourceTitle "playchess.com"]
[Source "ChessBase"]
[SourceQuality "1"]
[TimeControl "40/5400+30:1800+30"]

1. e4 {[%emt 0:01:07]} c5 {[%emt 0:00:00]} 2. Nf3 {[%emt 0:00:06]} Nc6 {[%emt 0:00:00]} 3. d4 {[%emt 0:00:15]} cxd4 {[%emt 0:00:03]} 4. Nxd4 {[%emt 0:00:04]} e5 {[%emt 0:00:06]} 5. Nb5 {[%emt 0:00:04]} d6 {[%emt 0:00:06]} 6. c4 {[%emt 0:00:05]} a6 {[%emt 0:00:09]} 7. N5c3 {[%emt 0:00:13]} Nf6 {[%emt 0:00:09]} 8. Be2 {[%emt 0:01:48]} Be6 {[%emt 0:00:08]} 9. Be3 {[%emt 0:00:46]} Rc8 {[%emt 0:00:23]} 10. O-O {[%emt 0:00:53]} g6 {[%emt 0:00:10]} 11. Qd2 {[%emt 0:04:50]} Bg7 {[%emt 0:00:12]} 12. Rd1 {[%emt 0:01:53]} O-O {[%emt 0:00:11]} 13. Qxd6 {[%emt 0:26:49]} Nd4 {[%emt 0:00:47]} 14. Qxd8 {[%emt 0:00:12]} Rfxd8 {[%emt 0:00:31]} 15. Bd3 {[%emt 0:00:09]} b5 {[%emt 0:12:04]} 16. cxb5 {[%emt 0:03:17]} axb5 {[%emt 0:00:26]} 17. Nd2 {[%emt 0:03:52]} b4 {[%emt 0:02:15]} 18. Nb5 {[%emt 0:03:11]} Nc2 {[%emt 0:02:29]} 19. Bxc2 {[%emt 0:00:05]} Rxc2 {[%emt 0:00:05]} 20. f3 {[%emt 0:10:47]} Rxb2 {[%emt 0:02:13]} 21. a4 {[%emt 0:01:47]} Ba2 {[%emt 0:13:21]} 22. a5 {[%emt 0:08:05]} Ra8 {[%emt 0:42:28]} 23. a6 Rxa6 {[%emt 0:01:13]} 24. Nc4 {[%emt 0:10:06]} Bxc4 {[%emt 0:00:39]} 25. Rd8+ {[%emt 0:01:53]} Bf8 {[%emt 0:05:43]} 26. Rxa6 {[%emt 0:02:18]} Kg7 {[%emt 0:01:30]} 27. Raa8 {[%emt 0:04:37]} Rb1+ {[%emt 0:00:38]} 28. Kf2 {[%emt 0:00:07]} Be7 {[%emt 0:00:28]} 29. Rdb8 {[%emt 0:01:29]} Rf1+ {[%emt 0:00:17]} 30. Kg3 {[%emt 0:00:24]} Nh5+ {[%emt 0:00:06]} 31. Kh3 {[%emt 0:00:19]} f5 {[%emt 0:03:07]} 32. exf5 {[%emt 0:02:46]} gxf5 {[%emt 0:00:23]} 33. Nd4 {[%emt 0:02:03]} exd4 {[%emt 0:00:32]} 34. Bxd4+ {[%emt 0:00:02]} Kf7 {[%emt 0:00:25]} 35. g4 {[%emt 0:01:20]} Rxf3+ {[%emt 0:00:29]} 36. Kg2 {[%emt 0:00:04]} fxg4 {[%emt 0:00:20]} 37. Be5 {[%emt 0:01:46]} Rf5 {[%emt 0:00:55]} 38. Ra5 {[%emt 0:00:21]} Bf1+ {[%emt 0:00:07]} 0-1

[Event "Ruzomberok GM 2019"]
[Site "Ruzomberok"]
[Date "2019.07.07"]
[Round "9.4"]
[White "Mazur, Stefan"]
[Black "Nayhebaver, Martin"]
[Result "1/2-1/2"]
[ECO "B69"]
[WhiteElo "2426"]
[BlackElo "2473"]
[Annotator "ChessBase"]
[PlyCount "92"]
[EventDate "2019.06.29"]
[EventType "tourn"]
[EventCountry "SVK"]
[SourceTitle "playchess.com"]
[Source "ChessBase"]
[SourceQuality "1"]
[TimeControl "40/5400+30:1800+30"]

1. e4 {[%emt 0:00:00]} c5 {[%emt 0:00:00]} 2. Nf3 {[%emt 0:00:00]} Nc6 {[%emt 0:00:29]} 3. d4 {[%emt 0:01:30]} cxd4 {[%emt 0:00:42]} 4. Nxd4 {[%emt 0:00:07]} Nf6 {[%emt 0:00:39]} 5. Nc3 {[%emt 0:00:05]} d6 {[%emt 0:00:50]} 6. Bg5 {[%emt 0:00:44]} e6 {[%emt 0:00:14]} 7. Qd2 {[%emt 0:00:05]} Be7 {[%emt 0:00:29]} 8. O-O-O {[%emt 0:03:33]} a6 {[%emt 0:00:52]} 9. f4 {[%emt 0:01:32]} Bd7 {[%emt 0:00:56]} 10. Nf3 {[%emt 0:01:35]} b5 {[%emt 0:00:28]} 11. Bxf6 {[%emt 0:00:49]} gxf6 {[%emt 0:00:06]} 12. f5 {[%emt 0:00:37]} Qb6 {[%emt 0:00:36]} 13. Kb1 {[%emt 0:00:29]} O-O-O {[%emt 0:00:39]} 14. g3 {[%emt 0:00:15]} Kb8 {[%emt 0:00:24]} 15. fxe6 {[%emt 0:01:13]} fxe6 {[%emt 0:00:09]} 16. Bh3 {[%emt 0:00:36]} Na5 {[%emt 0:00:39]} 17. Nd4 {[%emt 0:05:59]} b4 {[%emt 0:01:06]} 18. Nce2 {[%emt 0:09:08]} e5 {[%emt 0:02:27]} 19. Nf5 {[%emt 0:03:36]} Bxf5 {[%emt 0:04:23]} 20. Bxf5 {[%emt 0:00:12]} d5 {[%emt 0:00:29]} 21. exd5 {[%emt 0:02:31]} Nc4 {[%emt 0:00:32]} 22. Qd3 {[%emt 0:03:08]} Ne3 {[%emt 0:00:51]} 23. Qe4 {[%emt 0:04:35]} Nxd1 {[%emt 0:02:51]} 24. Rxd1 {[%emt 0:00:15]} h5 {[%emt 0:00:25]} 25. c4 {[%emt 0:18:41]} h4 {[%emt 0:06:12]} 26. g4 {[%emt 0:04:54]} h3 {[%emt 0:05:06]} 27. Ng3 {[%emt 0:02:29]} b3 {[%emt 0:09:11]} 28. axb3 {[%emt 0:07:48]} Qxb3 {[%emt 0:00:43]} 29. Qc2 {[%emt 0:02:54]} Qb4 {[%emt 0:00:38]} 30. Ne4 {[%emt 0:02:15]} Bc5 {[%emt 0:00:30]} 31. Qc3 {[%emt 0:03:08]} Qb6 {[%emt 0:03:44]} 32. Nxc5 {[%emt 0:01:08]} Qxc5 {[%emt 0:00:07]} 33. b4 {[%emt 0:00:07]} Qf2 {[%emt 0:01:19]} 34. c5 {[%emt 0:00:51]} Qxh2 {[%emt 0:03:57]} 35. Qc4 {[%emt 0:08:11]} Qf4 {[%emt 0:03:51]} 36. Qxa6 {[%emt 0:10:56]} Qxb4+ {[%emt 0:00:35]} 37. Ka2 {[%emt 0:00:02]} h2 {[%emt 0:01:21]} 38. Rb1 {[%emt 0:00:38]} Qxb1+ {[%emt 0:01:26]} 39. Bxb1 {[%emt 0:00:02]} Rd7 {[%emt 0:06:08]} 40. Qb6+ {[%emt 0:00:49]} Rb7 {[%emt 0:00:16]} 41. Qd6+ {[%emt 0:30:35]} Ka7 {[%emt 0:30:35]} 42. Be4 {[%emt 0:00:00]} h1=Q {[%emt 0:00:00]} 43. Bxh1 {[%emt 0:00:00]} Rh2+ {[%emt 0:00:00]} 44. Ka3 {[%emt 0:00:00]} Rxh1 {[%emt 0:00:00]} 45. Ka2 {[%emt 0:00:00]} Rh2+ {[%emt 0:00:00]} 46. Ka3 {[%emt 0:00:00]} Rh1 {[%emt 0:00:00]} 1/2-1/2